fUSD/lending_fUSD_20260205
["ID","MTS","AMOUNT","RATE_DAILY","PERIOD"]
[404545565,1770274243819,-1000.0,0.00017799,2]
[404545566,1770274243829,-1000.0,0.00017799,2]
[404545567,1770274243839,-166.57,0.00017807,2]
[404545568,1770274243848,-533.55,0.00017808,2]
[404545569,1770274243858,-1000.0,0.00017808,2]
[404545570,1770274243867,-1000.0,0.00017808,2]
[404545571,1770274243877,-1000.0,0.00017817,2]
[404545572,1770274243887,-1000.0,0.00017819,2]
[404545573,1770274243897,-173.45848611,0.00017822,2]
[404545574,1770274243906,-150.0,0.00017824,2]
[404545575,1770274243916,-152.05768541,0.00017824,2]
[404545576,1770274243926,-1000.0,0.00017827,2]
[404545577,1770274243935,-1000.0,0.00017846,2]
[404545578,1770274243945,-1000.0,0.00017847,2]
[404545579,1770274243955,-150.0,0.00017854,2]
[404545580,1770274243965,-304.0,0.00017856,2]
[404545581,1770274243974,-500.0,0.00017856,2]
[404545582,1770274243984,-500.0,0.00017856,2]
[404545583,1770274243994,-500.0,0.00017856,2]
[404545584,1770274244003,-1000.0,0.00017859,2]
[404545585,1770274244013,-1000.0,0.00017866,2]
[404545586,1770274244022,-1000.0,0.0001787,2]
[404545587,1770274244032,-207.76603134,0.00017873,2]
[404545588,1770274244042,-1000.0,0.00017879,2]
[404545589,1770274244052,-150.0,0.00017882,2]
[404545590,1770274244061,-469.0,0.00017887,2]
[404545591,1770274244072,-519.49,0.00017899,2]
[404545592,1770274244082,-25000.0,0.000179,3]
[404545593,1770274244091,-6440.65816456,0.000179,3]
[404545594,1770274244100,-160.0,0.000179,3]
[404545595,1770274244110,-9900.64059695,0.000179,2]
[404545596,1770274244119,-1453.4741383,0.000179,2]
[404545597,1770274244129,-14030.0,0.000179,2]
[404545598,1770274244139,-150.0,0.00017906,2]
[404545599,1770274244149,-150.0,0.00017935,2]
[404545600,1770274244159,-200.0,0.00017942,2]
[404545601,1770274244168,-1000.0,0.00017948,2]
[404545602,1770274244178,-1000.0,0.00017948,2]
[404545603,1770274244188,-1000.0,0.00017948,2]
[404545604,1770274244198,-1000.0,0.00017948,2]
[404545605,1770274244207,-1000.0,0.00017948,2]
[404545606,1770274244217,-1000.0,0.00017948,2]
[404545607,1770274244227,-1000.0,0.00017948,2]
[404545608,1770274244236,-1000.0,0.00017948,2]
[404545609,1770274244246,-1000.0,0.00017948,2]
[404545610,1770274244256,-1000.0,0.00017948,2]
[404545611,1770274244266,-1000.0,0.00017948,2]
[404545612,1770274244275,-506.851,0.00017948,2]
[404545613,1770274244285,-150.0,0.00017951,2]
[404545614,1770274244294,-200.0,0.00017954,2]
[404545615,1770274244304,-1000.0,0.00017956,2]
[404545616,1770274244313,-1000.0,0.00017963,2]
[404545617,1770274244323,-150.0,0.00017968,2]
[404545618,1770274244333,-150.0,0.00017971,2]
[404545619,1770274244342,-500.0,0.00017973,2]
[404545620,1770274244352,-309.44398841,0.00017973,2]
[404545621,1770274244361,-500.0,0.00017973,2]
[404545622,1770274244371,-500.0,0.00017973,2]
[404545623,1770274244381,-500.0,0.00017973,2]
[404545624,1770274244391,-500.0,0.00017973,2]
[404545625,1770274244400,-500.0,0.00017973,2]
[404545626,1770274244410,-500.0,0.00017973,2]
[404545627,1770274244420,-500.0,0.00017973,2]
[404545628,1770274244429,-500.0,0.00017973,2]
[404545629,1770274244439,-500.0,0.00017973,2]
[404545630,1770274244449,-500.0,0.00017973,2]
[404545631,1770274244458,-520.97702983,0.00017973,2]
[404545632,1770274244468,-500.0,0.00017973,2]
[404545633,1770274244478,-500.0,0.00017973,2]
[404545634,1770274244487,-500.0,0.00017973,2]
[404545635,1770274244497,-500.0,0.00017973,2]
[404545636,1770274244507,-500.0,0.00017973,2]
[404545637,1770274244517,-500.0,0.00017973,2]
[404545638,1770274244526,-500.0,0.00017973,2]
[404545639,1770274244536,-500.0,0.00017973,2]
[404545640,1770274244545,-500.0,0.00017973,2]
[404545641,1770274244555,-500.0,0.00017973,2]
[404545642,1770274244564,-500.0,0.00017973,2]
[404545643,1770274244574,-500.0,0.00017973,2]
[404545644,1770274244584,-500.0,0.00017973,2]
[404545645,1770274244594,-500.0,0.00017973,2]
[404545646,1770274244604,-502.08032841,0.00017973,2]
[404545647,1770274244613,-500.0,0.00017973,2]
[404545648,1770274244623,-500.0,0.00017973,2]
[404545649,1770274244637,-500.0,0.00017973,2]
[404545650,1770274244647,-500.0,0.00017973,2]
[404545651,1770274244656,-561.5530591,0.00017973,2]
[404545652,1770274244666,-500.0,0.00017973,2]
[404545653,1770274244677,-500.0,0.00017973,2]
[404545654,1770274244686,-500.0,0.00017973,2]
[404545655,1770274244696,-262.39107038,0.00017973,2]
[404545656,1770274244708,-500.0,0.00017973,2]
[404545657,1770274244718,-500.0,0.00017973,2]
[404545658,1770274244727,-500.0,0.00017973,2]
[404545659,1770274244737,-500.0,0.00017973,2]
[404545660,1770274244746,-150.0,0.00017974,2]
[404545661,1770274244755,-150.0,0.00017979,2]
[404545662,1770274244765,-500.0,0.00017982,2]
[404545663,1770274244775,-150.0,0.00017992,2]
[404545664,1770274244784,-519.49,0.00017995,2]
[404545665,1770274244795,-519.49,0.00017995,2]
[404545666,1770274244805,-519.49,0.00017995,2]
[404545667,1770274244814,-519.49,0.00017995,2]
[404545668,1770274244823,-519.49,0.00017995,2]
[404545669,1770274244833,-519.53,0.00017995,2]
[404545670,1770274244843,-338231.3071695,0.00017999,2]
[404545671,1770274244852,-8940.6713331,0.00017999,2]
[404545672,1770274244861,-155.0,0.00017999,2]
[404545673,1770274244871,-1010.8044,0.00017999,2]
[404545674,1770274244882,-77145.6094647,0.00017999,2]
[404545675,1770274244893,-300.0,0.00017999,2]
[404545676,1770274244902,-3131.8401214,0.00017999,2]
[404545677,1770274244911,-300.0,0.00017999,2]
[404545678,1770274244921,-666.0,0.00017999,2]
[404545679,1770274244931,-2439.797423,0.00017999,2]
[404545680,1770274244941,-12047.3809132,0.00017999,2]
[404545681,1770274244950,-300.0,0.00017999,2]
[404545682,1770274244959,-666.0,0.00017999,2]
[404545683,1770274244969,-300.0,0.00017999,2]
[404545684,1770274244979,-2538878.36930164,0.00018,2]
[404545692,1770274247832,-160.0,0.00015382,2]
[404545693,1770274247843,-1317.0,0.00016243,2]
[404545694,1770274247853,-5859.28165717,0.00016512,2]
[404545697,1770274367296,500.0,0.00021,30]
[404545700,1770274467317,-738.0,0.00011452,2]
[404545701,1770274467339,-173.39726333,0.00011484,2]
[404545702,1770274467361,-150.0,0.00011582,2]
[404545703,1770274472958,500.0,0.00011582,2]
[404545704,1770274473023,500.0,0.00011582,2]
[404545705,1770274473084,157.98992563,0.00011582,2]
[404545706,1770274489190,374.30433146,0.00011484,2]
[404545707,1770274505415,152.0,0.00011484,3]
[404545708,1770274507235,178.0,0.00020349,120]
[404545709,1770274509430,185.0,0.00011484,3]
[404545710,1770274511448,156.0,0.00011484,3]
[404545711,1770274513166,1023.30847958,0.00011484,2]
[404545716,1770274565008,152.0,0.00011484,3]
[404545717,1770274570624,156.0,0.00011484,3]
[404545718,1770274627689,152.0,0.00011484,3]
[404545719,1770274633316,156.0,0.00011484,3]
[404545720,1770274688253,152.0,0.00011484,3]
[404545721,1770274694035,156.0,0.00011484,3]
[404545722,1770274746504,152.0,0.00011484,3]
[404545723,1770274751251,156.0,0.00011484,3]
[404545724,1770274806263,152.0,0.00011484,3]
[404545725,1770274806492,185.0,0.00011484,3]
[404545726,1770274810996,156.0,0.00011484,3]
[404545729,1770274869288,152.0,0.00011484,3]
[404545730,1770274873756,156.0,0.00011484,3]
[404545731,1770274925710,152.0,0.00011484,3]
[404545732,1770274929234,156.0,0.00011484,3]
[404545733,1770274986746,152.0,0.00011484,3]
[404545734,1770274991036,157.0,0.00011484,3]
[404545735,1770275046958,152.0,0.00011484,3]
[404545737,1770275107056,152.0,0.00011484,3]
[404545739,1770275158278,1565.73508417,0.00011384,2]
[404545740,1770275158559,289.56523372,0.00011384,2]
[404545741,1770275158591,722.8955016,0.00011384,2]
[404545742,1770275164964,152.0,0.00011484,3]
[404545743,1770275228310,152.0,0.00011484,3]
[404545744,1770275288129,152.0,0.00011484,3]
[404545746,1770275345833,152.0,0.00011484,3]
[404545747,1770275412541,152.0,0.00011484,3]
[404545751,1770275431416,-150.0,0.00011383,2]
[404545753,1770275431426,-249.53622096,0.00011383,2]
[404545755,1770275431436,-1976.28635192,0.00011383,2]
[404545757,1770275431446,-387.17784613,0.00011384,2]
[404545760,1770275431455,-808.53111487,0.00011384,2]
[404545763,1770275431469,-1416.42598487,0.00011384,2]
[404545765,1770275431481,-1438.947,0.00011384,2]
[404545767,1770275431493,-756.18617286,0.00011384,2]
[404545768,1770275431506,-8886.18718251,0.00011384,2]
[404545769,1770275431618,-1351.14592439,0.00011384,2]
[404545770,1770275431630,-1283.74605043,0.00011384,2]
[404545897,1770275437592,-1421.04,0.00011383,2]
[404545898,1770275437604,-7043.82893042,0.00011383,2]
[404545899,1770275437614,-743.47810788,0.00011383,2]
[404545900,1770275437624,-7591.1074982,0.00011384,2]
[404545901,1770275437636,-540.01220046,0.00011384,2]
[404545902,1770275437723,-3729.44527212,0.00011384,2]
[404546106,1770275439892,-3469620.0697798,0.00011384,2]
[404546108,1770275439902,-956.12210173,0.00011483,2]
[404546110,1770275439913,-26496.8487,0.00011584,2]
[404546112,1770275439923,-1000.0,0.00011584,2]
[404546114,1770275439933,-9489.04716179,0.00011634,2]
[404546115,1770275439945,-25041.74559135,0.00011634,2]
[404546116,1770275439955,-44176.60751609,0.00011634,2]
[404546117,1770275439969,-2083.28887264,0.00011645,2]
[404546118,1770275439981,-8464.86893038,0.00012107,2]
[404546119,1770275439991,-1976.28635185,0.00012314,2]
[404546120,1770275440001,-255.0,0.00012442,2]
[404546122,1770275440014,-250.0,0.00012521,2]
[404546123,1770275440024,-12372.57,0.00012618,2]
[404546125,1770275440034,-500.0,0.00012674,2]
[404546127,1770275440043,-276.0926,0.00012921,2]
[404546129,1770275440054,-3353.79,0.00012985,2]
[404546131,1770275440064,-299.99,0.00012985,2]
[404546134,1770275440075,-624.0,0.00012993,2]
[404546136,1770275440085,-8330.69,0.00013021,2]
[404546138,1770275440095,-999.99,0.00013021,2]
[404546140,1770275440105,-150.99,0.00013021,2]
[404546142,1770275440115,-4999.99,0.00013021,2]
[404546144,1770275440125,-1610.11,0.00013021,2]
[404546146,1770275440135,-26701.08,0.00013021,2]
[404546148,1770275440145,-9999.99,0.00013021,2]
[404546174,1770275440398,-9999.99,0.00013021,2]
[404546176,1770275440411,-5326.57,0.00013021,2]
[404546178,1770275440422,-9999.99,0.00013021,2]
[404546180,1770275440432,-22333.09,0.00013021,2]
[404546182,1770275440442,-9999.99,0.00013021,2]
[404546184,1770275440452,-499.99,0.00013021,2]
[404546186,1770275440463,-150.99,0.00013021,2]
[404546188,1770275440476,-14611.7,0.00013021,2]
[404546190,1770275440486,-500.0,0.00013217,2]
[404546192,1770275440497,-500.0,0.00013217,2]
[404546194,1770275440507,-500.0,0.00013217,2]
[404546196,1770275440518,-151.0,0.00013217,2]
[404546198,1770275440529,-500.0,0.00013217,2]
[404546200,1770275440539,-151.0,0.00013217,2]
[404546202,1770275440550,-500.0,0.00013217,2]
[404546204,1770275440560,-151.0,0.00013217,2]
[404546206,1770275440571,-500.0,0.00013217,2]
[404546208,1770275440582,-151.0,0.00013217,2]
[404546211,1770275440593,-500.0,0.00013217,2]
[404546213,1770275440604,-151.0,0.00013217,2]
[404546215,1770275440614,-500.0,0.00013217,2]
[404546217,1770275440625,-151.0,0.00013217,2]
[404546218,1770275440635,-226.0059482,0.00013217,2]
[404546220,1770275440645,-151.0,0.00013217,2]
[404546223,1770275440656,-151.0,0.00013217,2]
[404546225,1770275440666,-151.0,0.00013217,2]
[404546227,1770275440676,-151.0,0.00013217,2]
[404546229,1770275440686,-151.0,0.00013217,2]
[404546231,1770275440697,-200.0,0.00013217,2]
[404546233,1770275440707,-200.0,0.00013217,2]
[404546235,1770275440717,-500.0,0.00013217,2]
[404546237,1770275440729,-2083.28887264,0.00013237,2]
[404546239,1770275440739,-1976.28635185,0.00013245,2]
[404546241,1770275440750,-500.0,0.00013424,2]
[404546243,1770275440760,-150.0,0.00013424,2]
[404546245,1770275440771,-269.92100004,0.00013424,2]
[404546247,1770275440782,-150.0,0.00013424,2]
[404546249,1770275440793,-3240.0,0.00013425,2]
[404546251,1770275440804,-500.0,0.00013479,2]
[404546253,1770275440814,-233.53357207,0.00013479,2]
[404546255,1770275440824,-150.0,0.00013479,2]
[404546257,1770275440834,-185.53305553,0.00013534,2]
[404546259,1770275440845,-273.38131323,0.00013534,2]
[404546261,1770275440855,-2500.0,0.00013575,2]
[404546263,1770275440866,-420.0,0.00013603,2]
[404546265,1770275440877,-11876.68,0.00013675,2]
[404546267,1770275440888,-500.0,0.00013698,2]
[404546269,1770275440898,-500.0,0.00013698,2]
[404546272,1770275440909,-500.0,0.00013698,2]
[404546274,1770275440919,-500.0,0.00013698,2]
[404546276,1770275440929,-447.07793737,0.00013698,2]
[404546277,1770275440942,-500.0,0.00013698,2]
[404546280,1770275440953,-500.0,0.00013698,2]
[404546282,1770275440964,-457.99797698,0.00013698,2]
[404546284,1770275440978,-519.49,0.00013698,2]
[404546286,1770275440989,-519.49,0.00013698,2]
[404546288,1770275440999,-519.49,0.00013698,2]
[404546290,1770275441010,-519.49,0.00013698,2]
[404546291,1770275441021,-519.49,0.00013698,2]
[404546294,1770275441032,-519.49,0.00013698,2]
[404546296,1770275441042,-519.49,0.00013698,2]
[404546298,1770275441052,-519.49,0.00013698,2]
[404546300,1770275441063,-519.49,0.00013698,2]
[404546302,1770275441073,-519.49,0.00013698,2]
[404546304,1770275441083,-519.49,0.00013698,2]
[404546306,1770275441093,-519.49,0.00013698,2]
[404546308,1770275441104,-519.49,0.00013698,2]
[404546310,1770275441115,-519.49,0.00013698,2]
[404546312,1770275441125,-519.49,0.00013698,2]
[404546314,1770275441136,-1991.02,0.00013699,2]
[404546316,1770275441146,-200.0,0.00013699,2]
[404546318,1770275441156,-2482.56,0.00013699,2]
[404546320,1770275441167,-200.0,0.00013765,2]
[404546322,1770275441178,-200.0,0.00013765,2]
[404546324,1770275441188,-500.0,0.00013765,2]
[404546326,1770275441198,-230.94,0.00013849,2]
[404546328,1770275441209,-501.0,0.00013863,2]
[404546330,1770275441220,-500.0,0.00013963,2]
[404546332,1770275441230,-500.0,0.00013963,2]
[404546334,1770275441241,-500.0,0.00013963,2]
[404546336,1770275441251,-500.0,0.00013963,2]
[404546339,1770275441262,-500.0,0.00013963,2]
[404546341,1770275441273,-500.0,0.00013963,2]
[404546343,1770275441283,-500.0,0.00013963,2]
[404546345,1770275441293,-500.0,0.00013963,2]
[404546347,1770275441303,-500.0,0.00013963,2]
[404546349,1770275441314,-500.0,0.00013963,2]
[404546351,1770275441324,-500.0,0.00013963,2]
[404546353,1770275441334,-19655.0,0.00014113,2]
[404546355,1770275441344,-66085.56281471,0.00014134,2]
[404546357,1770275441355,-1976.28635185,0.00014176,2]
[404546359,1770275441366,-250.37152364,0.00014196,2]
[404546362,1770275441378,-150.0,0.000142,2]
[404546363,1770275441388,-158.67,0.00014206,2]
[404546366,1770275441398,-152.93,0.00014291,2]
[404546368,1770275441408,-233.22924952,0.00014313,2]
[404546370,1770275441418,-500.0,0.00014313,2]
[404546371,1770275441427,-160.0,0.00014339,2]
[404546373,1770275441437,-158.67,0.00014371,2]
[404546376,1770275441447,-1991.02,0.00014384,2]
[404546378,1770275441458,-158.67,0.00014537,2]
[404546380,1770275441472,-614.51163375,0.000146,2]
[404546382,1770275441483,-500.0,0.000146,2]
[404546384,1770275441494,-500.0,0.000146,2]
[404546386,1770275441504,-500.0,0.000146,2]
[404546388,1770275441515,-500.0,0.000146,2]
[404546390,1770275441525,-502.1700093,0.000146,2]
[404546392,1770275441535,-500.0,0.000146,2]
[404546394,1770275441546,-500.0,0.000146,2]
[404546396,1770275441557,-500.0,0.00014603,2]
[404546398,1770275441568,-166.66,0.00014608,2]
[404546400,1770275441578,-151.0,0.00014634,2]
[404546402,1770275441589,-151.0,0.00014634,2]
[404546404,1770275441599,-89416.1169,0.00014634,2]
[404546406,1770275441610,-249.53622096,0.00014642,2]
[404546408,1770275441620,-743.47810788,0.00014642,2]
[404546410,1770275441632,-158.67,0.00014703,2]
[404546412,1770275441642,-500.0,0.00014861,2]
[404546414,1770275441652,-250.0,0.00015,2]
[404546416,1770275441662,-152.62,0.00015,2]
[404546418,1770275441673,-1991.02,0.00015068,2]
[404546420,1770275441683,-166.66,0.00015091,2]
[404546422,1770275441693,-1976.28635185,0.00015107,2]
[404546424,1770275441703,-1000.0,0.00015148,2]
[404546426,1770275441713,-500.0,0.00015148,2]
[404546428,1770275441727,-1000.0,0.00015148,2]
[404546430,1770275441738,-347.37162909,0.00015148,2]
[404546432,1770275441749,-500.0,0.00015148,2]
[404546434,1770275441759,-519.49,0.0001518,2]
[404546436,1770275441770,-500.0,0.00015521,2]
[404546438,1770275441781,-391.0,0.00015568,2]
[404546440,1770275441791,-166.66,0.00015573,2]
[404546442,1770275441802,-391.0,0.00015599,2]
[404546444,1770275441812,-1500.0,0.00015696,2]
[404546446,1770275441823,-1504.24108191,0.00015696,2]
[404546447,1770275441833,-1205.0,0.00015745,2]
[404546449,1770275441844,-6581.0,0.00015745,2]
[404546451,1770275441854,-1317.0,0.00015745,2]
[404546453,1770275441865,-2466.995,0.00015745,2]
[404546455,1770275441877,-568.607,0.00015745,2]
[404546457,1770275441887,-1991.02,0.00015753,2]
[404546459,1770275441898,-391.0,0.00015797,2]
[404546461,1770275441909,-197.54,0.00015918,2]
[404546462,1770275441919,-152.05768541,0.00015952,2]
[404546463,1770275441930,-150.27588128,0.00016,2]
[404546464,1770275441943,-1976.28635185,0.00016038,2]
[404546465,1770275441954,-391.0,0.00016052,2]
[404546466,1770275441964,-166.66,0.00016055,2]
[404546467,1770275441979,-532.0,0.00016073,2]
[404546469,1770275441991,-391.0,0.00016102,2]
[404546471,1770275442001,-500.0,0.00016225,2]
[404546473,1770275442012,-500.0,0.00016225,2]
[404546475,1770275442022,-500.0,0.00016225,2]
[404546476,1770275442032,-500.0,0.00016225,2]
[404546477,1770275442043,-500.0,0.00016225,2]
[404546478,1770275442053,-507.70655637,0.00016225,2]
[404546479,1770275442063,-500.0,0.00016225,2]
[404546480,1770275442073,-500.0,0.00016225,2]
[404546481,1770275442084,-500.0,0.00016225,2]
[404546482,1770275442094,-500.0,0.00016225,2]
[404546483,1770275442104,-501.96335117,0.00016225,2]
[404546484,1770275442115,-196.23,0.00016243,2]
[404546486,1770275442125,-277.537,0.00016243,2]
[404546488,1770275442136,-229.28,0.00016243,2]
[404546489,1770275442147,-179.178,0.00016243,2]
[404546490,1770275442157,-158.945,0.00016243,2]
[404546491,1770275442168,-250.0,0.00016243,2]
[404546492,1770275442179,-191.693,0.00016243,2]
[404546493,1770275442189,-164.442,0.00016243,2]
[404546494,1770275442200,-212.815,0.00016243,2]
[404546495,1770275442211,-250.0,0.00016243,2]
[404546496,1770275442224,-171.0,0.00016243,2]
[404546497,1770275442234,-232.419,0.00016243,2]
[404546498,1770275442245,-3491.028,0.00016243,2]
[404546499,1770275442255,-1411.0,0.00016243,2]
[404546500,1770275442266,-1335.0,0.00016243,2]
[404546501,1770275442278,-616.445,0.00016243,2]
[404546502,1770275442289,-1271.0,0.00016243,2]
[404546503,1770275442300,-150.0,0.00016243,2]
[404546504,1770275442310,-917.0,0.00016243,2]
[404546505,1770275442321,-1291.24412758,0.00016244,2]
[404546506,1770275442332,-519.49,0.00016315,2]
[404546507,1770275442342,-391.0,0.00016328,2]
[404546508,1770275442352,-391.0,0.00016387,2]
[404546509,1770275442363,-2083.28887264,0.00016419,2]
[404546510,1770275442373,-1991.02,0.00016438,2]
[404546511,1770275442384,-166.66,0.00016537,2]
[404546512,1770275442394,-152.05768541,0.00016566,2]
[404546513,1770275442404,-165.83,0.00016712,2]
[404546514,1770275442414,-391.0,0.00016792,2]
[404546515,1770275442425,-391.0,0.0001691,2]
[404546516,1770275442436,-391.0,0.00016911,2]
[404546517,1770275442446,-1976.28635185,0.00016969,2]
[404546518,1770275442456,-391.0,0.00016977,2]
[404546519,1770275442468,-300.0,0.00017,2]
[404546520,1770275442479,-166.66,0.00017019,2]
[404546522,1770275442489,-773.71,0.00017056,2]
[404546524,1770275442500,-322.6107,0.00017099,2]
[404546526,1770275442511,-500.0,0.00017099,2]
[404546528,1770275442521,-1449.10348087,0.00017099,2]
[404546529,1770275442532,-2000.0,0.00017099,2]
[404546530,1770275442543,-500.0,0.00017099,2]
[404546531,1770275442554,-2000.0,0.00017099,2]
[404546532,1770275442565,-500.0,0.00017099,2]
[404546533,1770275442576,-174.61919141,0.00017099,2]
[404546534,1770275442587,-2000.0,0.00017099,2]
[404546535,1770275442597,-500.0,0.00017099,2]
[404546536,1770275442608,-2000.0,0.00017099,2]
[404546537,1770275442619,-500.0,0.00017099,2]
[404546538,1770275442629,-2000.0,0.00017099,2]
[404546539,1770275442640,-500.0,0.00017099,2]
[404546540,1770275442651,-2000.0,0.00017099,2]
[404546541,1770275442661,-500.0,0.00017099,2]
[404546542,1770275442672,-2000.0,0.00017099,2]
[404546543,1770275442683,-216.07161542,0.00017099,2]
[404546544,1770275442693,-1508.30623238,0.00017099,2]
[404546545,1770275442704,-743.50770149,0.00017099,2]
[404546546,1770275442714,-578.20924308,0.00017099,2]
[404546547,1770275442726,-250.0,0.00017099,2]
[404546548,1770275442737,-250.0,0.00017099,2]
[404546549,1770275442747,-250.0,0.00017099,2]
[404546550,1770275442758,-250.0,0.00017099,2]
[404546551,1770275442768,-250.0,0.00017099,2]
[404546552,1770275442779,-209.40437684,0.00017099,2]
[404546553,1770275442789,-250.0,0.00017099,2]
[404546554,1770275442799,-250.0,0.00017099,2]
[404546555,1770275442809,-228.82569288,0.00017099,2]
[404546556,1770275442818,-217.15233878,0.00017154,2]
[404546557,1770275442829,-152.05768541,0.0001718,2]
[404546558,1770275442840,-391.0,0.00017185,2]
[404546559,1770275442851,-391.0,0.00017193,2]
[404546560,1770275442862,-225.18697532,0.00017209,2]
[404546561,1770275442874,-1000.0,0.0001726,2]
[404546562,1770275442885,-233.51889341,0.00017264,2]
[404546563,1770275442895,-242.15909246,0.00017319,2]
[404546564,1770275442906,-251.11897888,0.00017374,2]
[404546565,1770275442916,-260.4103811,0.00017429,2]
[404546566,1770275442927,-230.94,0.00017443,2]
[404546567,1770275442938,-166.57,0.00017453,2]
[404546568,1770275442950,-270.0455652,0.00017484,2]
[404546569,1770275442961,-1000.0,0.00017534,2]
[404546570,1770275442973,-280.03725112,0.00017539,2]
[404546571,1770275442986,-391.0,0.00017552,2]
[404546572,1770275442997,-290.39862941,0.00017594,2]
[404546573,1770275443008,-1560.32,0.000176,2]
[404546574,1770275443020,-181.08010149,0.00017647,2]
[404546575,1770275443030,-209.98794847,0.00017647,2]
[404546576,1770275443040,-301.1433787,0.00017649,2]
[404546577,1770275443051,-391.0,0.00017665,2]
[404546578,1770275443062,-508.0,0.00017677,2]
[404546579,1770275443073,-6655.19,0.00017728,2]
[404546580,1770275443083,-508.0,0.00017728,2]
[404546581,1770275443095,-1538.138,0.00017789,2]
[404546582,1770275443105,-186.727,0.00017789,2]
[404546583,1770275443115,-152.05768541,0.00017793,2]
[404546584,1770275443125,-1000.0,0.00017808,2]
[404546585,1770275443136,-179.37879,0.0001782,2]
[404546586,1770275443146,-179.37879,0.0001782,2]
[404546587,1770275443155,-179.37878,0.0001782,2]
[404546588,1770275443166,-500.0,0.00017856,2]
[404546589,1770275443178,-500.0,0.00017856,2]
[404546590,1770275443189,-500.0,0.00017856,2]
[404546591,1770275443200,-951.124593,0.00017869,7]
[404546592,1770275443210,-500.0,0.00017899,2]
[404546593,1770275443220,-500.0,0.00017899,2]
[404546594,1770275443231,-288.02611632,0.00017899,2]
[404546595,1770275443241,-500.0,0.00017899,2]
[404546596,1770275443252,-1440.65816456,0.000179,3]
[404546597,1770275443262,-4800.0,0.000179,2]
[404546598,1770275443273,-249.53622096,0.000179,2]
[404546599,1770275443284,-1976.28635185,0.000179,2]
[404546600,1770275443295,-13827.0,0.000179,2]
[404546601,1770275443306,-500.0,0.00017942,2]
[404546602,1770275443317,-500.0,0.00017942,2]
[404546603,1770275443328,-500.0,0.00017942,2]
[404546604,1770275443338,-500.0,0.00017942,2]
[404546605,1770275443349,-500.0,0.00017942,2]
[404546606,1770275443360,-1000.0,0.00017943,2]
[404546607,1770275443371,-1000.0,0.00017943,2]
[404546608,1770275443381,-1000.0,0.00017943,2]
[404546609,1770275443392,-1000.0,0.00017943,2]
[404546610,1770275443403,-1000.0,0.00017943,2]
[404546611,1770275443413,-1000.0,0.00017943,2]
[404546612,1770275443424,-1000.0,0.00017943,2]
[404546613,1770275443435,-1000.0,0.00017943,2]
[404546614,1770275443446,-1000.0,0.00017943,2]
[404546615,1770275443457,-1000.0,0.00017943,2]
[404546616,1770275443469,-1000.0,0.00017943,2]
[404546617,1770275443480,-506.851,0.00017943,2]
[404546618,1770275443491,-591.0,0.00017943,2]
[404546619,1770275443501,-500.0,0.00017973,2]
[404546620,1770275443511,-500.0,0.00017973,2]
[404546621,1770275443522,-500.0,0.00017973,2]
[404546622,1770275443533,-500.0,0.00017973,2]
[404546623,1770275443543,-561.5530591,0.00017973,2]